fUSD/lending_fUSD_20260626
["ID","MTS","AMOUNT","RATE_DAILY","PERIOD"]
[426486566,1782453050000,-256.349753,0.0002912,7]
[426486568,1782453050000,-262.725384,0.0002912,7]
[426486539,1782453050000,-10378.52599574,0.00029,2]
[426486533,1782453050000,-241.49581938,0.00029,2]
[426486535,1782453050000,-1174.0,0.00029,2]
[426486538,1782453050000,-14218.91252411,0.00029,2]
[426486534,1782453050000,-800.0,0.00029,2]
[426486543,1782453050000,-12213.88489994,0.00029,2]
[426486547,1782453050000,-256.349754,0.00029,7]
[426486544,1782453050000,-26979.69562245,0.00029,2]
[426486549,1782453050000,-256.349754,0.00029,7]
[426486551,1782453050000,-5150.79392249,0.00029009,3]
[426486546,1782453050000,-256.349754,0.00029,7]
[426486545,1782453050000,-173.0,0.00029,2]
[426486552,1782453050000,-152.0,0.0002903,6]
[426486537,1782453050000,-6104.31290547,0.00029,7]
[426486548,1782453050000,-256.349754,0.00029,7]
[426486564,1782453050000,-256.349754,0.0002912,7]
[426486554,1782453050000,-482.4,0.00029038,2]
[426486563,1782453050000,-256.349754,0.0002912,7]
[426486556,1782453050000,-151.0,0.00029038,2]
[426486561,1782453050000,-500.0,0.00029119,7]
[426486562,1782453050000,-500.0,0.00029119,7]
[426486560,1782453050000,-1087.8678838,0.00029119,15]
[426486555,1782453050000,-482.3,0.00029038,2]
[426486559,1782453050000,-2361.0,0.00029048,3]
[426486550,1782453050000,-15000.0,0.00029009,3]
[426486565,1782453050000,-256.349754,0.0002912,7]
[426486558,1782453050000,-500.0,0.00029047,7]
[426486557,1782453050000,-151.0,0.00029046,2]
[426486553,1782453050000,-185.59,0.00029038,2]
[426486631,1782453051000,-200.0,0.00029296,2]
[426486628,1782453051000,-200.0,0.00029296,2]
[426486629,1782453051000,-200.0,0.00029296,2]
[426486627,1782453051000,-200.0,0.00029296,2]
[426486624,1782453051000,-200.0,0.00029296,2]
[426486625,1782453051000,-200.0,0.00029296,2]
[426486630,1782453051000,-200.0,0.00029296,2]
[426486620,1782453051000,-200.0,0.00029296,2]
[426486639,1782453051000,-500.0,0.00029296,2]
[426486636,1782453051000,-500.0,0.00029296,2]
[426486634,1782453051000,-500.0,0.00029296,2]
[426486645,1782453051000,-859.2896717,0.00029379,2]
[426486635,1782453051000,-500.0,0.00029296,2]
[426486638,1782453051000,-500.0,0.00029296,2]
[426486632,1782453051000,-200.0,0.00029296,2]
[426486642,1782453051000,-505.0,0.00029296,2]
[426486640,1782453051000,-500.0,0.00029296,2]
[426486641,1782453051000,-500.0,0.00029296,2]
[426486653,1782453051000,-5817.7494048,0.00029379,2]
[426486618,1782453051000,-200.0,0.00029296,2]
[426486637,1782453051000,-500.0,0.00029296,2]
[426486622,1782453051000,-200.0,0.00029296,2]
[426486606,1782453051000,-200.0,0.00029296,2]
[426486621,1782453051000,-200.0,0.00029296,2]
[426486604,1782453051000,-200.0,0.00029296,2]
[426486602,1782453051000,-200.0,0.00029296,2]
[426486598,1782453051000,-200.0,0.00029296,2]
[426486601,1782453051000,-200.0,0.00029296,2]
[426486603,1782453051000,-200.0,0.00029296,2]
[426486599,1782453051000,-200.0,0.00029296,2]
[426486600,1782453051000,-200.0,0.00029296,2]
[426486616,1782453051000,-200.0,0.00029296,2]
[426486610,1782453051000,-200.0,0.00029296,2]
[426486605,1782453051000,-200.0,0.00029296,2]
[426486608,1782453051000,-200.0,0.00029296,2]
[426486609,1782453051000,-200.0,0.00029296,2]
[426486607,1782453051000,-200.0,0.00029296,2]
[426486611,1782453051000,-200.0,0.00029296,2]
[426486615,1782453051000,-200.0,0.00029296,2]
[426486612,1782453051000,-200.0,0.00029296,2]
[426486614,1782453051000,-200.0,0.00029296,2]
[426486613,1782453051000,-200.0,0.00029296,2]
[426486619,1782453051000,-200.0,0.00029296,2]
[426486617,1782453051000,-200.0,0.00029296,2]
[426486623,1782453051000,-200.0,0.00029296,2]
[426486626,1782453051000,-200.0,0.00029296,2]
[426486646,1782453051000,-44141.5854314,0.00029379,2]
[426486633,1782453051000,-189.0,0.00029296,2]
[426486644,1782453051000,-280.41,0.000293,7]
[426486667,1782453051000,-322.0,0.00029625,30]
[426486677,1782453051000,-1579.72,0.000297,7]
[426486675,1782453051000,-2332.0,0.00029688,3]
[426486673,1782453051000,-1821.0,0.00029625,30]
[426486674,1782453051000,-533.0,0.00029625,30]
[426486689,1782453051000,-151.0,0.0002989,2]
[426486690,1782453051000,-500.0,0.00029899,7]
[426486679,1782453051000,-337.0,0.00029725,5]
[426486682,1782453051000,-151.0,0.00029859,2]
[426486680,1782453051000,-923.0,0.00029847,2]
[426486681,1782453051000,-151.0,0.00029859,2]
[426486683,1782453051000,-644.45,0.00029859,2]
[426486678,1782453051000,-689.92456832,0.00029709,2]
[426486684,1782453051000,-151.0,0.00029859,2]
[426486685,1782453051000,-151.0,0.00029859,2]
[426486686,1782453051000,-151.0,0.00029864,2]
[426486688,1782453051000,-164.0,0.0002988,7]
[426486687,1782453051000,-164.0,0.0002988,7]
[426486652,1782453051000,-955.4641631,0.00029379,2]
[426486693,1782453051000,-920.50812063,0.000299,7]
[426486692,1782453051000,-9916.24260584,0.000299,2]
[426486669,1782453051000,-337.0,0.00029625,30]
[426486671,1782453051000,-272.0,0.00029625,30]
[426486691,1782453051000,-804.7,0.000299,7]
[426486672,1782453051000,-1195.0,0.00029625,30]
[426486676,1782453051000,-283.58292908,0.00029695,2]
[426486649,1782453051000,-11074.1171549,0.00029379,2]
[426486643,1782453051000,-406203.38142706,0.00029296,2]
[426486650,1782453051000,-6376.739967,0.00029379,2]
[426486647,1782453051000,-15545.5723888,0.00029379,2]
[426486648,1782453051000,-10713.1871557,0.00029379,2]
[426486651,1782453051000,-1219.9000711,0.00029379,2]
[426486655,1782453051000,-2766.67,0.00029408,7]
[426486654,1782453051000,-4656.8973731,0.00029379,2]
[426486656,1782453051000,-800.0,0.000295,2]
[426486665,1782453051000,-1475.0,0.00029625,30]
[426486662,1782453051000,-280.0,0.00029624,30]
[426486668,1782453051000,-1071.0,0.00029625,30]
[426486670,1782453051000,-155.0,0.00029625,30]
[426486658,1782453051000,-50000.0,0.000295,2]
[426486664,1782453051000,-348.0,0.00029625,30]
[426486661,1782453051000,-790.89,0.00029624,7]
[426486666,1782453051000,-343.0,0.00029625,30]
[426486659,1782453051000,-1170.43805866,0.0002955,2]
[426486663,1782453051000,-153.0,0.00029624,30]
[426486657,1782453051000,-800.0,0.000295,2]
[426486660,1782453051000,-151.56862248,0.00029558,28]
[426486700,1782453052000,-17298.14493662,0.000299,2]
[426486699,1782453052000,-17298.14493662,0.000299,2]
[426486697,1782453052000,-17298.14493662,0.000299,2]
[426486694,1782453052000,-383.49187937,0.000299,7]
[426486702,1782453052000,-1212.10832609,0.000299,2]
[426486698,1782453052000,-17298.14493662,0.000299,2]
[426486701,1782453052000,-17298.14493662,0.000299,2]
[426486695,1782453052000,-17298.14493681,0.000299,2]
[426486708,1782453052000,-304.00030695,0.00024871,2]
[426486707,1782453052000,-630.73843092,0.00024871,2]
[426486705,1782453052000,-17298.14493662,0.000299,2]
[426486696,1782453052000,-17298.14493662,0.000299,2]
[426486706,1782453052000,-12694.74844333,0.000299,2]
[426486703,1782453052000,-17298.14493662,0.000299,2]
[426486704,1782453052000,-17298.14493662,0.000299,2]
[426486709,1782453053000,-150.0,0.00023288,2]
[426486710,1782453053000,-2956.88679369,0.00024871,2]
[426486712,1782453120000,253.63784175,0.00010258,2]
[426486711,1782453120000,246.36215825,0.00010258,2]
[426486714,1782453170000,500.0,0.0003725,120]
[426486713,1782453170000,500.0,0.0003725,120]
[426486717,1782453171000,500.0,0.0003725,120]
[426486716,1782453171000,500.0,0.0003725,120]
[426486715,1782453171000,500.0,0.0003725,120]
[426486718,1782453172000,500.0,0.0003725,120]
[426486720,1782453172000,500.0,0.0003725,120]
[426486721,1782453172000,500.0,0.0003725,120]
[426486719,1782453172000,500.0,0.0003725,120]
[426486724,1782453173000,500.0,0.0003725,120]
[426486723,1782453173000,500.0,0.0003725,120]
[426486722,1782453173000,500.0,0.0003725,120]
[426486728,1782453174000,500.0,0.0003725,120]
[426486727,1782453174000,500.0,0.0003725,120]
[426486726,1782453174000,500.0,0.0003725,120]
[426486725,1782453174000,500.0,0.0003725,120]
[426486730,1782453175000,203.55,0.0003725,120]
[426486729,1782453175000,500.0,0.0003725,120]
[426486733,1782453504000,518.77822873,0.00037262,120]
[426486745,1782453950000,518.73243549,0.00037243,120]
[426486744,1782453950000,500.0,0.00037243,120]
[426486746,1782454066000,2109.3424705,0.00010473,4]
[426486748,1782454103000,221.26037658,9.949e-05,2]
[426486749,1782454103000,801.78572479,9.949e-05,2]
[426486750,1782454103000,2358.38389863,9.949e-05,2]
[426486769,1782454208000,-481.09648525,0.00010299,2]
[426486753,1782454208000,-184.3408869,0.00010015,2]
[426486752,1782454208000,-3381.43,0.00010008,2]
[426486754,1782454208000,-65.6591131,0.00010015,2]
[426486755,1782454208000,-193.0,0.00010022,2]
[426486756,1782454208000,-500.0,0.00010037,2]
[426486757,1782454208000,-250.0,0.00010043,2]
[426486758,1782454208000,-2557.1117738,0.00010066,2]
[426486759,1782454208000,-824.3182262,0.00010066,2]
[426486760,1782454208000,-193.0,0.00010083,2]
[426486761,1782454208000,-201.14180665,0.00010083,2]
[426486762,1782454208000,-2347.31085405,0.00010124,2]
[426486764,1782454208000,-2531.65174095,0.00010182,2]
[426486763,1782454208000,-1034.11914595,0.00010124,2]
[426486765,1782454208000,-849.77825905,0.00010182,2]
[426486766,1782454208000,-2715.99262785,0.0001024,2]
[426486767,1782454208000,-665.43737215,0.0001024,2]
[426486768,1782454208000,-2900.33351475,0.00010299,2]
[426486770,1782454208000,-2852.50020646,0.00010357,2]
[426486772,1782454210000,-500.0,0.00010043,2]
[426486774,1782454210000,-528.92979354,0.00010357,2]
[426486771,1782454210000,-500.0,0.00010015,2]
[426486775,1782454210000,-179.52253363,0.00010373,2]
[426486773,1782454210000,-500.0,0.00010043,2]
[426486776,1782454210000,-1357.31855973,0.00010415,2]
[426486780,1782454212000,2498.25,9.725e-05,2]
[426486779,1782454212000,2498.25,9.681e-05,2]
[426486778,1782454212000,2498.25,9.638e-05,2]
[426486777,1782454212000,2498.25,9.594e-05,2]
[426486781,1782454212000,2498.25,9.768e-05,2]
[426486784,1782454213000,2498.25,9.899e-05,2]
[426486783,1782454213000,2498.25,9.855e-05,2]
[426486782,1782454213000,2498.25,9.812e-05,2]
[426486786,1782454215000,2498.25,9.986e-05,2]
[426486785,1782454215000,2498.25,9.942e-05,2]
[426486789,1782454231000,-881.80625,0.00010029,2]
[426486803,1782454232000,-166.66666666,0.00010473,2]
[426486798,1782454232000,-2498.25,0.00010378,2]
[426486800,1782454232000,-2498.25,0.00010421,2]
[426486797,1782454232000,-2498.25,0.00010334,2]
[426486794,1782454232000,-2498.25,0.00010203,2]
[426486790,1782454232000,-1616.44375,0.00010029,2]
[426486795,1782454232000,-2498.25,0.00010247,2]
[426486793,1782454232000,-2498.25,0.0001016,2]
[426486792,1782454232000,-2498.25,0.00010116,2]
[426486791,1782454232000,-2498.25,0.00010073,2]
[426486799,1782454232000,-2024.11144027,0.00010415,2]
[426486796,1782454232000,-2498.25,0.0001029,2]
[426486801,1782454232000,-2498.25,0.00010465,2]
[426486810,1782454232000,-3381.43,0.0001059,2]
[426486804,1782454232000,-3381.43,0.00010473,2]
[426486817,1782454232000,-2854.93476114,0.00010822,2]
[426486815,1782454232000,-3381.44,0.00010749,2]
[426486814,1782454232000,-3217.037094,0.00010706,2]
[426486811,1782454232000,-3381.44,0.00010611,2]
[426486813,1782454232000,-164.392906,0.00010706,2]
[426486812,1782454232000,-3381.43,0.00010648,2]
[426486816,1782454232000,-3381.43,0.00010764,2]
[426486805,1782454232000,-2498.25,0.00010508,2]
[426486808,1782454232000,-150.0,0.00010577,2]
[426486807,1782454232000,-150.0,0.00010542,2]
[426486806,1782454232000,-3381.43,0.00010531,2]
[426486809,1782454232000,-150.0,0.00010589,2]
[426486802,1782454232000,-3381.44,0.00010473,2]
[426486826,1782454238000,-1347.36589371,0.00010939,2]
[426486824,1782454238000,-3381.43,0.0001088,2]
[426486825,1782454238000,-3381.44,0.00010887,2]
[426486823,1782454238000,-526.49523886,0.00010822,2]
[426486827,1782454238000,-265.712551,0.00010939,2]
[426486829,1782454238000,-150.0,0.00010959,2]
[426486830,1782454238000,-918.16559286,0.00010967,2]
[426486832,1782454238000,-1777.01171462,0.00010997,2]
[426486831,1782454238000,-365.30440714,0.00010967,2]
[426486828,1782454238000,-1768.35155529,0.00010939,2]
[426486849,1782454240000,-4.95857149,0.00010409,2]
[426486848,1782454240000,-312.28,0.00010336,2]
[426486855,1782454242000,-306.15412685,0.00010409,2]
[426486856,1782454243000,-1.16730166,0.00010409,2]
[426486857,1782454243000,-312.28,0.00010481,2]
[426486858,1782454243000,-310.12673006,0.00010554,2]
[426486874,1782454246000,-193.0,0.00011008,2]
[426486866,1782454246000,-312.28,0.00010627,2]
[426486867,1782454246000,-312.28,0.00010699,2]
[426486865,1782454246000,-2.15326994,0.00010554,2]
[426486868,1782454246000,-312.28,0.00010772,2]
[426486869,1782454246000,-312.28,0.00010844,2]
[426486870,1782454246000,-312.28,0.00010917,2]
[426486871,1782454246000,-312.28,0.00010989,2]
[426486880,1782454246000,-2749.53348311,0.00011024,2]
[426486872,1782454246000,-1604.41828538,0.00010997,2]
[426486881,1782454246000,-384.4793795,0.00011024,2]
[426486882,1782454246000,-66.5206205,0.00011024,2]
[426486878,1782454246000,-287.58286261,0.00011008,2]
[426486873,1782454246000,-500.0,0.00011008,2]
[426486875,1782454246000,-383.060665,0.00011008,2]
[426486877,1782454246000,-212.41713739,0.00011008,2]
[426486876,1782454246000,-250.0,0.00011008,2]
[426486879,1782454246000,-247.41713739,0.00011024,2]
[426486883,1782454347000,50000.0,0.00037242,120]
[426486885,1782454379000,313.99,9.964e-05,2]
[426486884,1782454379000,313.99,9.894e-05,2]
[426486886,1782454387000,151.0,0.00037242,120]
[426486887,1782454407000,150.0,9.732e-05,2]
[426486889,1782454516000,305.52,9.782e-05,2]
[426486888,1782454516000,305.52,9.657e-05,2]
[426486890,1782454517000,305.52,9.908e-05,2]
[426486893,1782455011000,312.30748383,9.927e-05,2]
[426486894,1782455011000,198.77494019,9.625e-05,2]
[426486896,1782455063000,1756.22470113,0.00037245,120]
[426486899,1782455333000,-150.0,0.00010037,2]
[426486900,1782455333000,-280.74913101,0.00010103,2]
[426486898,1782455333000,-305.52,0.00010033,2]
[426486897,1782455333000,-313.99,0.00010033,2]
[426486949,1782455432000,-3314.9193795,0.00011024,2]
[426486950,1782455432000,-250.0,0.00011036,2]
[426486952,1782455432000,-312.28,0.00011062,2]
[426486948,1782455432000,-150.0,0.00010963,2]
[426486942,1782455432000,-3237.04,0.00010958,2]
[426486953,1782455432000,-230.5,0.00011062,2]
[426486936,1782455432000,-313.99,0.00010589,2]
[426486943,1782455432000,-150.0,0.00010959,2]
[426486946,1782455432000,-166.66,0.00010959,2]
[426486935,1782455432000,-1213.708387,0.00010553,2]
[426486951,1782455432000,-250.0,0.00011036,2]
[426486963,1782455432000,-236.61,0.00011249,2]
[426486954,1782455432000,-166.66,0.00011068,2]
[426486956,1782455432000,-3381.43,0.00011121,2]
[426486957,1782455432000,-312.28,0.00011134,2]
[426486959,1782455432000,-300.0,0.00011162,2]
[426486969,1782455432000,-312.28,0.00011352,2]
[426486965,1782455432000,-166.66,0.00011288,2]
[426486960,1782455432000,-166.66,0.00011178,2]
[426486964,1782455432000,-312.28,0.00011279,2]
[426486961,1782455432000,-312.28,0.00011207,2]
[426486939,1782455432000,-313.99,0.00010797,2]
[426486955,1782455432000,-250.0,0.00011113,2]
[426486938,1782455432000,-313.99,0.00010727,2]
[426486945,1782455432000,-150.0,0.00010959,2]
[426486933,1782455432000,-2235.4059078,0.00010548,2]
[426486916,1782455432000,-33.24086899,0.00010103,2]
[426486917,1782455432000,-305.52,0.00010159,2]
[426486922,1782455432000,-216.48047229,0.00010241,2]
[426486918,1782455432000,-313.99,0.00010172,2]
[426486923,1782455432000,-305.52,0.00010284,2]
[426486920,1782455432000,-156.31,0.00010241,2]
[426486919,1782455432000,-157.64930769,0.00010211,2]
[426486921,1782455432000,-313.99,0.00010241,2]
[426486924,1782455432000,-313.99,0.00010311,2]
[426486931,1782455432000,-305.52,0.00010535,2]
[426486926,1782455432000,-305.52,0.00010409,2]
[426486937,1782455432000,-313.99,0.00010658,2]
[426486930,1782455432000,-313.99,0.00010519,2]
[426486928,1782455432000,-160.0,0.00010432,2]
[426486967,1782455432000,-500.0,0.000113,2]
[426486927,1782455432000,-1255.11637452,0.00010415,2]
[426486932,1782455432000,-305.52,0.00010535,2]
[426486929,1782455432000,-313.99,0.0001045,2]
[426486925,1782455432000,-313.99,0.0001038,2]
[426486941,1782455432000,-313.99,0.00010936,2]
[426486944,1782455432000,-3206.4,0.00010959,2]
[426486934,1782455432000,-584.3024032,0.00010548,2]
[426486940,1782455432000,-313.99,0.00010866,2]
[426486947,1782455432000,-4613.35,0.00010963,2]
[426486962,1782455432000,-3381.43,0.00011218,2]
[426486966,1782455432000,-3381.44,0.000113,2]
[426486968,1782455432000,-3381.43,0.00011314,2]
[426486997,1782455432000,-507.78629078,0.00012429,2]
[426487002,1782455432000,-153.0,0.00012858,2]
[426487000,1782455432000,-150.0,0.00012858,2]
[426487003,1782455432000,-151.0,0.00012858,2]
[426487001,1782455432000,-151.0,0.00012858,2]
[426486999,1782455432000,-338.52436071,0.00012556,2]
[426487004,1782455432000,-151.0,0.00012859,2]
[426487011,1782455432000,-200.0,0.00013699,2]
[426487014,1782455432000,-150.0,0.00013776,2]
[426487008,1782455432000,-433.0,0.00013145,2]
[426487007,1782455432000,-151.0,0.00012926,2]
[426487012,1782455432000,-151.0,0.00013776,2]
[426487006,1782455432000,-151.0,0.00012866,2]
[426487009,1782455432000,-167.81,0.00013475,2]
[426487010,1782455432000,-623.4196,0.00013676,2]
[426487015,1782455432000,-152.0,0.00013776,2]
[426486958,1782455432000,-3381.44,0.00011162,2]
[426487013,1782455432000,-153.0,0.00013776,2]
[426487017,1782455432000,-151.0,0.00013776,2]
[426487016,1782455432000,-152.0,0.00013776,2]
[426487020,1782455432000,-151.0,0.00013776,2]
[426487018,1782455432000,-150.0,0.00013776,2]
[426487019,1782455432000,-152.0,0.00013776,2]
[426486998,1782455432000,-250.0,0.00012512,2]
[426486996,1782455432000,-236.61,0.00012373,2]
[426487005,1782455432000,-151.0,0.0001286,2]
[426486993,1782455432000,-150.0,0.00012215,2]
[426486995,1782455432000,-690.74412959,0.00012315,2]
[426486971,1782455432000,-3381.43,0.00011411,2]
[426486970,1782455432000,-166.66,0.00011397,2]
[426486973,1782455432000,-312.28,0.00011424,2]
[426486972,1782455432000,-167.16,0.00011418,2]
[426486977,1782455432000,-157.64930768,0.00011525,2]
[426486974,1782455432000,-3381.44,0.00011438,2]
[426486979,1782455432000,-236.61,0.0001153,2]
[426486975,1782455432000,-166.66,0.00011507,2]
[426486976,1782455432000,-3381.43,0.00011508,2]
[426486980,1782455432000,-167.81,0.00011566,2]
[426486981,1782455432000,-500.0,0.00011574,2]
[426486984,1782455432000,-2453.8956167,0.00011927,2]
[426486983,1782455432000,-445.54265778,0.00011848,2]
[426486990,1782455432000,-151.0,0.00012215,2]
[426486994,1782455432000,-160.0,0.00012243,2]
[426486991,1782455432000,-151.0,0.00012215,2]
[426486987,1782455432000,-150.0,0.00012215,2]
[426486988,1782455432000,-153.0,0.00012215,2]
[426486986,1782455432000,-236.61,0.00012092,2]
[426486989,1782455432000,-151.0,0.00012215,2]
[426486985,1782455432000,-255.0,0.00012004,2]
[426486992,1782455432000,-150.0,0.00012215,2]
[426486982,1782455432000,-236.61,0.00011811,2]
[426487040,1782455433000,-2806.82327854,0.000149,2]
[426487042,1782455433000,-2806.82327854,0.000149,2]
[426487043,1782455433000,-534.75997533,0.000149,2]
[426487045,1782455433000,-1540.14378314,0.000149,2]
[426487044,1782455433000,-2272.06330321,0.000149,2]
[426487048,1782455433000,-223.59437418,0.000149,2]
[426487047,1782455433000,-2276.9899,0.000149,2]
[426487057,1782455433000,-500.0,0.00014998,2]
[426487051,1782455433000,-2774.68814725,0.000149,2]
[426487050,1782455433000,-155.47146776,0.000149,2]
[426487049,1782455433000,-194.85915139,0.000149,2]
[426487058,1782455433000,-296.54903417,0.00014998,2]
[426487056,1782455433000,-500.0,0.00014998,2]
[426487055,1782455433000,-500.0,0.00014998,2]
[426487054,1782455433000,-306.97446578,0.00014998,2]
[426487041,1782455433000,-2806.82327854,0.000149,2]
[426487046,1782455433000,-1266.6794954,0.000149,2]
[426487038,1782455433000,-2806.82327854,0.00014899,2]
[426487027,1782455433000,-153.0,0.00014501,2]
[426487032,1782455433000,-152.0,0.00014501,2]
[426487052,1782455433000,-151.89522002,0.0001499,2]
[426487023,1782455433000,-405.0,0.00014394,2]
[426487026,1782455433000,-150.0,0.00014501,2]
[426487025,1782455433000,-151.0,0.00014501,2]
[426487022,1782455433000,-250.0,0.00014,2]
[426487021,1782455433000,-152.0,0.00013776,2]
[426487024,1782455433000,-151.0,0.00014501,2]
[426487039,1782455433000,-2806.82327854,0.00014899,2]
[426487029,1782455433000,-151.0,0.00014501,2]
[426487036,1782455433000,-2806.82327854,0.00014899,2]
[426487037,1782455433000,-2806.82327854,0.00014899,2]
[426487035,1782455433000,-2806.82327857,0.00014899,2]
[426487033,1782455433000,-153.0,0.00014501,2]
[426487031,1782455433000,-151.0,0.00014501,2]
[426487034,1782455433000,-150.0,0.00014501,2]
[426487030,1782455433000,-635.0,0.00014501,2]
[426487028,1782455433000,-153.0,0.00014501,2]
[426487053,1782455433000,-500.0,0.00014998,2]
[426487088,1782455433000,-500.0,0.00014998,2]
[426487061,1782455433000,-500.0,0.00014998,2]
[426487079,1782455433000,-500.0,0.00014998,2]
[426487078,1782455433000,-500.0,0.00014998,2]
[426487076,1782455433000,-500.0,0.00014998,2]
[426487092,1782455433000,-500.0,0.00014998,2]
[426487084,1782455433000,-500.0,0.00014998,2]
[426487087,1782455433000,-500.0,0.00014998,2]
[426487091,1782455433000,-500.0,0.00014998,2]
[426487083,1782455433000,-500.0,0.00014998,2]
[426487095,1782455433000,-232.86815359,0.00014998,2]
[426487086,1782455433000,-500.0,0.00014998,2]
[426487090,1782455433000,-500.0,0.00014998,2]
[426487085,1782455433000,-500.0,0.00014998,2]
[426487089,1782455433000,-500.0,0.00014998,2]
[426487096,1782455433000,-267.13184641,0.00014998,2]
[426487097,1782455433000,-500.0,0.00014998,2]
[426487063,1782455433000,-500.0,0.00014998,2]
[426487093,1782455433000,-500.0,0.00014998,2]
[426487077,1782455433000,-500.0,0.00014998,2]
[426487094,1782455433000,-500.0,0.00014998,2]
[426487081,1782455433000,-500.0,0.00014998,2]
[426487075,1782455433000,-500.0,0.00014998,2]
[426487059,1782455433000,-500.0,0.00014998,2]
[426487070,1782455433000,-500.0,0.00014998,2]
[426487071,1782455433000,-500.0,0.00014998,2]
[426487062,1782455433000,-500.0,0.00014998,2]
[426487069,1782455433000,-500.0,0.00014998,2]
[426487065,1782455433000,-46.187078,0.00014998,2]
[426487064,1782455433000,-500.0,0.00014998,2]
[426487067,1782455433000,-500.0,0.00014998,2]
[426487080,1782455433000,-500.0,0.00014998,2]
[426487068,1782455433000,-500.0,0.00014998,2]
[426487066,1782455433000,-453.812922,0.00014998,2]
[426487082,1782455433000,-500.0,0.00014998,2]
[426487072,1782455433000,-500.0,0.00014998,2]
[426487073,1782455433000,-500.0,0.00014998,2]
[426487074,1782455433000,-500.0,0.00014998,2]
[426487060,1782455433000,-500.0,0.00014998,2]
[426487114,1782455434000,-360.27122172,0.00014998,2]
[426487116,1782455434000,-400.38322269,0.00014998,2]
[426487105,1782455434000,-500.0,0.00014998,2]
[426487108,1782455434000,-500.0,0.00014998,2]
[426487109,1782455434000,-500.0,0.00014998,2]
[426487110,1782455434000,-500.0,0.00014998,2]
[426487115,1782455434000,-500.0,0.00014998,2]
[426487107,1782455434000,-500.0,0.00014998,2]
[426487112,1782455434000,-500.0,0.00014998,2]
[426487099,1782455434000,-500.0,0.00014998,2]
[426487106,1782455434000,-500.0,0.00014998,2]
[426487100,1782455434000,-500.0,0.00014998,2]
[426487101,1782455434000,-500.0,0.00014998,2]
[426487102,1782455434000,-500.0,0.00014998,2]
[426487098,1782455434000,-500.0,0.00014998,2]
[426487104,1782455434000,-500.0,0.00014998,2]
[426487103,1782455434000,-500.0,0.00014998,2]
[426487111,1782455434000,-500.0,0.00014998,2]
[426487113,1782455434000,-500.0,0.00014998,2]
[426487117,1782455434000,-99.61677731,0.00014998,2]
[426487119,1782455434000,-299.61677731,0.00014998,2]
[426487134,1782455434000,-500.0,0.00014998,2]
[426487118,1782455434000,-200.38322269,0.00014998,2]
[426487139,1782455434000,-258.7042545,0.00014999,2]
[426487135,1782455434000,-500.0,0.00014998,2]
[426487138,1782455434000,-1.32823281,0.00014999,2]
[426487136,1782455434000,-555.29957635,0.00014998,2]
[426487137,1782455434000,-498.67176719,0.00014999,2]
[426487132,1782455434000,-500.0,0.00014998,2]
[426487133,1782455434000,-500.0,0.00014998,2]
[426487129,1782455434000,-500.0,0.00014998,2]
[426487131,1782455434000,-500.0,0.00014998,2]
[426487125,1782455434000,-500.0,0.00014998,2]
[426487128,1782455434000,-500.0,0.00014998,2]
[426487127,1782455434000,-500.0,0.00014998,2]